[Event "*** SCC Grand Prix: Titled Tuesday Blitz"]
[Site "Chess.com"]
[Date "2020.08.11"]
[Round "7"]
[White "kobemagic"]
[Black "mbachez"]
[Result "1-0"]
[WhiteElo "2299"]
[BlackElo "2452"]
[TimeControl "180+1"]
[EndTime "11:16:37 PDT"]
[Termination "kobemagic won by resignation"]

1. c4 {[%clk 0:03:00.9]} 1... e5 {[%clk 0:02:57.4]} 2. g3 {[%clk 0:02:59.3]}
2... Nf6 {[%clk 0:02:55.4]} 3. Bg2 {[%clk 0:02:59.6]} 3... Bc5 {[%clk
0:02:54.5]} 4. e3 {[%clk 0:02:58.4]} 4... O-O {[%clk 0:02:54.3]} 5. Nc3 {[%clk
0:02:56.5]} 5... c6 {[%clk 0:02:52.8]} 6. d4 {[%clk 0:02:55.4]} 6... exd4 {[%clk
0:02:50.5]} 7. exd4 {[%clk 0:02:56.3]} 7... Bb4 {[%clk 0:02:45.1]} 8. Ne2 {[%clk
0:02:56.3]} 8... d5 {[%clk 0:02:41.7]} 9. cxd5 {[%clk 0:02:50.5]} 9... Nxd5
{[%clk 0:02:40]} 10. O-O {[%clk 0:02:50.9]} 10... Be6 {[%clk 0:02:33.1]} 11. a3
{[%clk 0:02:48.7]} 11... Ba5 {[%clk 0:02:26.3]} 12. b4 {[%clk 0:02:42.1]} 12...
Bb6 {[%clk 0:02:22.7]} 13. Ne4 {[%clk 0:02:42.1]} 13... f6 {[%clk 0:02:12.9]}
14. Nc5 {[%clk 0:02:35.3]} 14... Bxc5 {[%clk 0:02:11.2]} 15. dxc5 {[%clk
0:02:36.2]} 15... Re8 {[%clk 0:02:06.8]} 16. Nf4 {[%clk 0:02:34.1]} 16... Bf7
{[%clk 0:01:59.3]} 17. Nxd5 {[%clk 0:02:25.7]} 17... Bxd5 {[%clk 0:01:56.9]} 18.
Bxd5+ {[%clk 0:02:25.6]} 18... cxd5 {[%clk 0:01:57.2]} 19. Bb2 {[%clk 0:02:21]}
19... Nc6 {[%clk 0:01:53.9]} 20. Re1 {[%clk 0:02:12.9]} 20... Qd7 {[%clk
0:01:50]} 21. Qd2 {[%clk 0:02:06.5]} 21... Ne5 {[%clk 0:01:39.8]} 22. Bxe5
{[%clk 0:02:00.7]} 22... fxe5 {[%clk 0:01:33.6]} 23. Rad1 {[%clk 0:01:59.3]}
23... Rad8 {[%clk 0:01:28.6]} 24. Qd3 {[%clk 0:01:56.9]} 24... Qf7 {[%clk
0:01:23.8]} 25. Re2 {[%clk 0:01:54]} 25... e4 {[%clk 0:01:10.4]} 26. Qe3 {[%clk
0:01:45.8]} 26... Qf6 {[%clk 0:01:05.8]} 27. Rd4 {[%clk 0:01:45.1]} 27... Re5
{[%clk 0:01:04.1]} 28. Qd2 {[%clk 0:01:39.9]} 28... Rf5 {[%clk 0:01:01.5]} 29.
Rexe4 {[%clk 0:01:28.1]} 29... Rf8 {[%clk 0:01:00.5]} 30. Rf4 {[%clk 0:01:25.8]}
30... Rxf4 {[%clk 0:00:57.3]} 31. Rxf4 {[%clk 0:01:24.3]} 31... Qa1+ {[%clk
0:00:58.2]} 32. Kg2 {[%clk 0:01:22.6]} 32... Rxf4 {[%clk 0:00:58.3]} 33. Qxf4
{[%clk 0:01:22.3]} 33... Qxa3 {[%clk 0:00:57.5]} 34. Qb8+ {[%clk 0:01:21.6]}
34... Kf7 {[%clk 0:00:58.4]} 35. Qxb7+ {[%clk 0:01:21.7]} 35... Ke6 {[%clk
0:00:59.3]} 36. Qc6+ {[%clk 0:01:12.3]} 36... Ke5 {[%clk 0:00:58.1]} 37. Qd6+
{[%clk 0:01:12.1]} 37... Kd4 {[%clk 0:00:58.4]} 38. c6 {[%clk 0:01:09.8]} 38...
Qd3 {[%clk 0:00:49.4]} 39. Qf4+ {[%clk 0:01:04]} 39... Kc3 {[%clk 0:00:47.6]}
40. Qe3 {[%clk 0:01:01.7]} 1-0

[Event "*** SCC Grand Prix: Titled Tuesday Blitz"]
[Site "Chess.com"]
[Date "2020.08.11"]
[Round "7"]
[White "Djager97"]
[Black "Tashik"]
[Result "1-0"]
[WhiteElo "2598"]
[BlackElo "2387"]
[TimeControl "180+1"]
[EndTime "11:16:38 PDT"]
[Termination "Djager97 won on time"]

1. e4 {[%clk 0:03:00.9]} 1... e5 {[%clk 0:02:59.1]} 2. Nf3 {[%clk 0:03:01.4]}
2... Nc6 {[%clk 0:02:59.6]} 3. d4 {[%clk 0:03:02]} 3... exd4 {[%clk 0:02:59.3]}
4. Nxd4 {[%clk 0:03:02.5]} 4... Nf6 {[%clk 0:02:59.1]} 5. Nxc6 {[%clk
0:03:02.9]} 5... bxc6 {[%clk 0:03:00]} 6. e5 {[%clk 0:03:03.6]} 6... Qe7 {[%clk
0:03:00.5]} 7. Qe2 {[%clk 0:03:04.1]} 7... Nd5 {[%clk 0:03:01.2]} 8. c4 {[%clk
0:03:04.1]} 8... Nb6 {[%clk 0:03:00.6]} 9. b3 {[%clk 0:03:04.3]} 9... g6 {[%clk
0:02:59.2]} 10. g3 {[%clk 0:02:58.5]} 10... Bg7 {[%clk 0:02:58.6]} 11. Bb2
{[%clk 0:02:58.4]} 11... d6 {[%clk 0:02:50.3]} 12. Bg2 {[%clk 0:02:57.5]} 12...
Bd7 {[%clk 0:02:39.1]} 13. O-O {[%clk 0:02:54.2]} 13... dxe5 {[%clk 0:02:26.8]}
14. Nd2 {[%clk 0:02:30.7]} 14... O-O {[%clk 0:02:24.6]} 15. a4 {[%clk
0:02:29.8]} 15... Rfe8 {[%clk 0:02:17.8]} 16. Ne4 {[%clk 0:02:22.7]} 16... f6
{[%clk 0:01:59]} 17. Ba3 {[%clk 0:02:16.3]} 17... Qf7 {[%clk 0:01:59.1]} 18. a5
{[%clk 0:02:05]} 18... Nc8 {[%clk 0:01:58.5]} 19. Nc5 {[%clk 0:02:04.5]} 19...
Nd6 {[%clk 0:01:50.7]} 20. Rfd1 {[%clk 0:02:01.6]} 20... Bf5 {[%clk 0:00:44.8]}
21. Bxc6 {[%clk 0:01:58.5]} 21... Rab8 {[%clk 0:00:44.6]} 22. Bxe8 {[%clk
0:01:52.6]} 22... Qxe8 {[%clk 0:00:44.7]} 23. Na6 {[%clk 0:01:46.7]} 23... Rb7
{[%clk 0:00:25.1]} 24. Nxc7 {[%clk 0:01:46.3]} 24... Rxc7 {[%clk 0:00:25.3]} 25.
Bxd6 {[%clk 0:01:46.4]} 25... Rb7 {[%clk 0:00:24]} 26. b4 {[%clk 0:01:42.2]}
26... Bh3 {[%clk 0:00:15.5]} 27. b5 {[%clk 0:01:38.8]} 27... Rd7 {[%clk
0:00:12.7]} 28. c5 {[%clk 0:01:36.3]} 28... Qe6 {[%clk 0:00:09.5]} 29. Qe4
{[%clk 0:01:19.7]} 29... Bg4 {[%clk 0:00:01.3]} 30. f3 {[%clk 0:01:16.2]} 30...
Bf5 {[%clk 0:00:01.4]} 31. Qd5 {[%clk 0:01:16.4]} 31... Kf7 {[%clk 0:00:01.5]}
32. c6 {[%clk 0:01:12.5]} 1-0

[Event "*** SCC Grand Prix: Titled Tuesday Blitz"]
[Site "Chess.com"]
[Date "2020.08.11"]
[Round "7"]
[White "FMOlexandrProhorov"]
[Black "tk22h"]
[Result "1-0"]
[WhiteElo "2149"]
[BlackElo "2371"]
[TimeControl "180+1"]
[EndTime "11:16:38 PDT"]
[Termination "FMOlexandrProhorov won by resignation"]

1. e4 {[%clk 0:03:00.9]} 1... e5 {[%clk 0:02:57.9]} 2. Nf3 {[%clk 0:03:00.6]}
2... Nc6 {[%clk 0:02:58]} 3. Bb5 {[%clk 0:03:00.5]} 3... a6 {[%clk 0:02:57.9]}
4. Bxc6 {[%clk 0:03:00.5]} 4... dxc6 {[%clk 0:02:57.5]} 5. h3 {[%clk 0:02:59.6]}
5... Bd6 {[%clk 0:02:57.1]} 6. O-O {[%clk 0:02:59.1]} 6... Ne7 {[%clk
0:02:57.2]} 7. d4 {[%clk 0:02:59.1]} 7... Ng6 {[%clk 0:02:56.5]} 8. Nc3 {[%clk
0:02:57.8]} 8... exd4 {[%clk 0:02:56]} 9. Qxd4 {[%clk 0:02:55]} 9... f6 {[%clk
0:02:55.4]} 10. Re1 {[%clk 0:02:44.4]} 10... O-O {[%clk 0:02:54.6]} 11. Be3
{[%clk 0:02:10.3]} 11... Be6 {[%clk 0:02:53.8]} 12. Rad1 {[%clk 0:02:09.4]}
12... Qe7 {[%clk 0:02:54]} 13. Qd2 {[%clk 0:01:47]} 13... Rad8 {[%clk
0:02:53.3]} 14. Nd4 {[%clk 0:01:43.8]} 14... Be5 {[%clk 0:02:51.3]} 15. Qe2
{[%clk 0:01:39.5]} 15... Qf7 {[%clk 0:02:05.1]} 16. Nxe6 {[%clk 0:01:37.8]}
16... Qxe6 {[%clk 0:02:04.7]} 17. Rxd8 {[%clk 0:01:36.5]} 17... Rxd8 {[%clk
0:02:03.9]} 18. Rd1 {[%clk 0:01:35.1]} 18... Rxd1+ {[%clk 0:02:03.4]} 19. Qxd1
{[%clk 0:01:36]} 19... Qd6 {[%clk 0:01:53.1]} 20. Qg4 {[%clk 0:01:29.3]} 20...
Bxc3 {[%clk 0:01:50.8]} 21. bxc3 {[%clk 0:01:26.9]} 21... Qe7 {[%clk 0:01:45.6]}
22. Qc8+ {[%clk 0:01:24.1]} 22... Nf8 {[%clk 0:01:38.1]} 23. Qxb7 {[%clk
0:01:25]} 23... Qxe4 {[%clk 0:01:34.8]} 24. Qxc7 {[%clk 0:01:24.4]} 24... Qd5
{[%clk 0:01:28.1]} 25. Qc8 {[%clk 0:01:10.5]} 25... Kf7 {[%clk 0:01:27.5]} 26.
Qxa6 {[%clk 0:01:08.6]} 26... Ne6 {[%clk 0:01:26.1]} 27. Qb7+ {[%clk 0:01:05.2]}
27... Kg6 {[%clk 0:01:25]} 28. a4 {[%clk 0:01:06.1]} 28... Qd1+ {[%clk
0:01:23.9]} 29. Kh2 {[%clk 0:01:05.7]} 29... Qd5 {[%clk 0:01:05.9]} 30. Qb4
{[%clk 0:00:57.9]} 30... c5 {[%clk 0:01:04.1]} 31. Qg4+ {[%clk 0:00:55.5]} 31...
Kf7 {[%clk 0:01:04.1]} 32. a5 {[%clk 0:00:53.4]} 32... Qe5+ {[%clk 0:00:55.5]}
33. g3 {[%clk 0:00:52.8]} 33... Qxc3 {[%clk 0:00:55.1]} 34. Qa4 {[%clk
0:00:41.3]} 34... Nd4 {[%clk 0:00:46.8]} 35. Bxd4 {[%clk 0:00:40.2]} 35... Qxd4
{[%clk 0:00:46]} 36. Qxd4 {[%clk 0:00:39.2]} 36... cxd4 {[%clk 0:00:46.3]} 37.
a6 {[%clk 0:00:40.1]} 1-0

[Event "*** SCC Grand Prix: Titled Tuesday Blitz"]
[Site "Chess.com"]
[Date "2020.08.11"]
[Round "7"]
[White "Na_binci"]
[Black "kallerotmg"]
[Result "0-1"]
[WhiteElo "1962"]
[BlackElo "2230"]
[TimeControl "180+1"]
[EndTime "11:16:38 PDT"]
[Termination "kallerotmg won on time"]

1. d4 {[%clk 0:03:00.9]} 1... Nf6 {[%clk 0:02:43.6]} 2. c4 {[%clk 0:03:00.2]}
2... e6 {[%clk 0:02:41.4]} 3. Nf3 {[%clk 0:02:59.5]} 3... a6 {[%clk 0:02:38]} 4.
Bg5 {[%clk 0:02:56.7]} 4... b5 {[%clk 0:02:32.5]} 5. e3 {[%clk 0:02:49.9]} 5...
bxc4 {[%clk 0:02:15.6]} 6. Bxc4 {[%clk 0:02:50.8]} 6... Bb7 {[%clk 0:02:15.2]}
7. O-O {[%clk 0:02:50]} 7... Be7 {[%clk 0:01:56.9]} 8. Nbd2 {[%clk 0:02:49.4]}
8... O-O {[%clk 0:01:48.9]} 9. Qe2 {[%clk 0:02:41.2]} 9... c5 {[%clk 0:01:44.3]}
10. dxc5 {[%clk 0:02:28.9]} 10... Bxc5 {[%clk 0:01:43]} 11. e4 {[%clk
0:02:05.3]} 11... d6 {[%clk 0:01:27.3]} 12. Rfd1 {[%clk 0:00:42]} 12... Nbd7
{[%clk 0:01:26.8]} 13. Rac1 {[%clk 0:00:38.2]} 13... e5 {[%clk 0:01:23.3]} 14.
a3 {[%clk 0:00:24.5]} 14... h6 {[%clk 0:01:21]} 15. Bh4 {[%clk 0:00:23.2]} 15...
Qe7 {[%clk 0:01:19.4]} 16. b4 {[%clk 0:00:22.5]} 16... Ba7 {[%clk 0:01:18.1]}
17. Ba2 {[%clk 0:00:18.9]} 17... Rfc8 {[%clk 0:01:13.1]} 18. Nc4 {[%clk
0:00:16.3]} 18... d5 {[%clk 0:00:56.9]} 19. exd5 {[%clk 0:00:13.7]} 19... e4
{[%clk 0:00:56.1]} 20. Nd4 {[%clk 0:00:11.5]} 20... Bxd5 {[%clk 0:00:52.4]} 21.
Nf5 {[%clk 0:00:11.3]} 21... Qe6 {[%clk 0:00:49.9]} 22. Rxd5 {[%clk 0:00:04.9]}
22... Nxd5 {[%clk 0:00:48.1]} 23. Nfd6 {[%clk 0:00:01.5]} 23... Qxd6 {[%clk
0:00:45.4]} 0-1

[Event "*** SCC Grand Prix: Titled Tuesday Blitz"]
[Site "Chess.com"]
[Date "2020.08.11"]
[Round "7"]
[White "korkmaz16"]
[Black "AlexSuv"]
[Result "0-1"]
[WhiteElo "2347"]
[BlackElo "2497"]
[TimeControl "180+1"]
[EndTime "11:16:41 PDT"]
[Termination "AlexSuv won by checkmate"]

1. d4 {[%clk 0:03:00.9]} 1... Nf6 {[%clk 0:02:59.5]} 2. Nf3 {[%clk 0:03:00.9]}
2... e6 {[%clk 0:02:57.7]} 3. e3 {[%clk 0:02:59.8]} 3... b6 {[%clk 0:02:56.2]}
4. Bd3 {[%clk 0:02:59.8]} 4... Bb7 {[%clk 0:02:56.3]} 5. O-O {[%clk 0:02:59.9]}
5... Be7 {[%clk 0:02:54.2]} 6. c4 {[%clk 0:03:00.1]} 6... O-O {[%clk 0:02:53.6]}
7. Nc3 {[%clk 0:03:00.5]} 7... d5 {[%clk 0:02:52.8]} 8. b3 {[%clk 0:02:47.1]}
8... Nbd7 {[%clk 0:02:48.1]} 9. cxd5 {[%clk 0:02:42.6]} 9... exd5 {[%clk
0:02:47.8]} 10. Bb2 {[%clk 0:02:40.2]} 10... Ne4 {[%clk 0:02:42.9]} 11. Rc1
{[%clk 0:02:34.7]} 11... Rc8 {[%clk 0:02:42.6]} 12. Ne5 {[%clk 0:02:27.4]} 12...
Ndf6 {[%clk 0:02:26.7]} 13. Nb5 {[%clk 0:02:12.4]} 13... a6 {[%clk 0:02:21.9]}
14. Na7 {[%clk 0:02:11.9]} 14... Ra8 {[%clk 0:02:19.1]} 15. Nac6 {[%clk
0:02:11.2]} 15... Qe8 {[%clk 0:02:17.2]} 16. Nxe7+ {[%clk 0:02:10.7]} 16... Qxe7
{[%clk 0:02:18.1]} 17. Qc2 {[%clk 0:02:06.8]} 17... Rac8 {[%clk 0:02:15.3]} 18.
f3 {[%clk 0:01:54.2]} 18... Nd6 {[%clk 0:02:14.4]} 19. Rfe1 {[%clk 0:01:47.2]}
19... c5 {[%clk 0:02:13.5]} 20. dxc5 {[%clk 0:01:41.2]} 20... bxc5 {[%clk
0:02:14.4]} 21. Qe2 {[%clk 0:01:18.8]} 21... a5 {[%clk 0:02:07.7]} 22. e4 {[%clk
0:01:03.5]} 22... dxe4 {[%clk 0:02:02.5]} 23. fxe4 {[%clk 0:01:02.3]} 23...
Ndxe4 {[%clk 0:01:59.8]} 24. Nc4 {[%clk 0:00:57.4]} 24... Rfe8 {[%clk
0:01:50.9]} 25. Nxa5 {[%clk 0:00:42.4]} 25... Ba8 {[%clk 0:01:49.9]} 26. Nc4
{[%clk 0:00:41.1]} 26... Qc7 {[%clk 0:01:46.6]} 27. Qf1 {[%clk 0:00:36.6]} 27...
Rcd8 {[%clk 0:01:41.7]} 28. Bxe4 {[%clk 0:00:29.3]} 28... Nxe4 {[%clk
0:01:42.6]} 29. Rcd1 {[%clk 0:00:26.6]} 29... f6 {[%clk 0:01:36]} 30. Rxd8
{[%clk 0:00:20.3]} 30... Rxd8 {[%clk 0:01:36.9]} 31. Qe2 {[%clk 0:00:17]} 31...
Qf4 {[%clk 0:01:31.3]} 32. Qe3 {[%clk 0:00:16.3]} 32... Qg4 {[%clk 0:01:29.6]}
33. h3 {[%clk 0:00:15.3]} 33... Qg6 {[%clk 0:01:28.7]} 34. Nb6 {[%clk
0:00:15.3]} 34... Bc6 {[%clk 0:01:22.5]} 35. Nc4 {[%clk 0:00:14.9]} 35... h5
{[%clk 0:01:17.6]} 36. Rf1 {[%clk 0:00:13.3]} 36... Kh7 {[%clk 0:01:15.1]} 37.
Rf4 {[%clk 0:00:13.5]} 37... Nd2 {[%clk 0:01:08.9]} 38. Nxd2 {[%clk 0:00:12.4]}
38... Qxg2# {[%clk 0:01:08.7]} 0-1

[Event "*** SCC Grand Prix: Titled Tuesday Blitz"]
[Site "Chess.com"]
[Date "2020.08.11"]
[Round "7"]
[White "anon569"]
[Black "smshk35"]
[Result "0-1"]
[WhiteElo "2344"]
[BlackElo "2495"]
[TimeControl "180+1"]
[EndTime "11:16:41 PDT"]
[Termination "smshk35 won on time"]

1. e4 {[%clk 0:03:00.9]} 1... c5 {[%clk 0:02:59.7]} 2. Nf3 {[%clk 0:02:57.7]}
2... e6 {[%clk 0:03:00.1]} 3. d4 {[%clk 0:02:55.4]} 3... cxd4 {[%clk 0:03:01]}
4. Nxd4 {[%clk 0:02:54.3]} 4... a6 {[%clk 0:03:01.5]} 5. Bd3 {[%clk 0:02:46.2]}
5... Nc6 {[%clk 0:03:00.8]} 6. Nxc6 {[%clk 0:02:40.1]} 6... dxc6 {[%clk
0:03:01.7]} 7. O-O {[%clk 0:02:37.2]} 7... Bc5 {[%clk 0:03:01.6]} 8. Qg4 {[%clk
0:02:29.9]} 8... Nf6 {[%clk 0:02:50.7]} 9. Qxg7 {[%clk 0:02:10.4]} 9... Rg8
{[%clk 0:02:49]} 10. Qh6 {[%clk 0:02:08.7]} 10... Rg6 {[%clk 0:02:42.2]} 11. Qh4
{[%clk 0:01:55.8]} 11... Rg4 {[%clk 0:02:36]} 12. Qh3 {[%clk 0:01:51.5]} 12...
e5 {[%clk 0:02:33.9]} 13. Qf3 {[%clk 0:01:43.1]} 13... Rg6 {[%clk 0:02:22]} 14.
h3 {[%clk 0:01:29.6]} 14... Qe7 {[%clk 0:02:09]} 15. Nc3 {[%clk 0:01:22.2]}
15... Be6 {[%clk 0:02:07]} 16. Be3 {[%clk 0:01:05.8]} 16... O-O-O {[%clk
0:02:05.4]} 17. Rad1 {[%clk 0:00:57.8]} 17... Rdg8 {[%clk 0:02:04.6]} 18. Bxc5
{[%clk 0:00:35.6]} 18... Qxc5 {[%clk 0:02:05.5]} 19. Kh1 {[%clk 0:00:35.2]}
19... h5 {[%clk 0:02:02.3]} 20. Ne2 {[%clk 0:00:14]} 20... Qf8 {[%clk
0:01:53.2]} 21. Rg1 {[%clk 0:00:12.1]} 21... Ng4 {[%clk 0:01:46.3]} 22. Rgf1
{[%clk 0:00:09]} 22... Qg7 {[%clk 0:01:45]} 23. hxg4 {[%clk 0:00:08.6]} 23...
Bxg4 {[%clk 0:01:34]} 24. Qe3 {[%clk 0:00:08.4]} 24... Bxe2 {[%clk 0:01:28.6]}
25. Bxe2 {[%clk 0:00:08.9]} 25... Rxg2 {[%clk 0:01:28.8]} 26. Bf3 {[%clk
0:00:09.4]} 26... Rg5 {[%clk 0:01:09.8]} 27. Kh2 {[%clk 0:00:05.5]} 27... Qf6
{[%clk 0:01:08.7]} 28. Bh1 {[%clk 0:00:04.6]} 28... Rg4 {[%clk 0:01:07]} 0-1

[Event "*** SCC Grand Prix: Titled Tuesday Blitz"]
[Site "Chess.com"]
[Date "2020.08.11"]
[Round "7"]
[White "carlsen1001"]
[Black "AvitalBor"]
[Result "0-1"]
[WhiteElo "2428"]
[BlackElo "2834"]
[TimeControl "180+1"]
[EndTime "11:16:47 PDT"]
[Termination "AvitalBor won by resignation"]

1. d4 {[%clk 0:03:00.9]} 1... Nf6 {[%clk 0:02:59.1]} 2. c4 {[%clk 0:03:01]} 2...
g6 {[%clk 0:02:59.2]} 3. Nf3 {[%clk 0:03:01.4]} 3... Bg7 {[%clk 0:02:59.1]} 4.
Nc3 {[%clk 0:03:01.7]} 4... d5 {[%clk 0:02:59.1]} 5. Qb3 {[%clk 0:03:01]} 5...
c6 {[%clk 0:02:58.1]} 6. e3 {[%clk 0:03:00]} 6... O-O {[%clk 0:02:58.4]} 7. Be2
{[%clk 0:02:59.8]} 7... a6 {[%clk 0:02:58.6]} 8. c5 {[%clk 0:02:59.4]} 8... Nbd7
{[%clk 0:02:54.5]} 9. O-O {[%clk 0:02:59]} 9... Ne4 {[%clk 0:02:54.1]} 10. Rd1
{[%clk 0:02:54.5]} 10... f5 {[%clk 0:02:50.1]} 11. a4 {[%clk 0:02:49.5]} 11...
h6 {[%clk 0:02:48.3]} 12. Nd2 {[%clk 0:02:42.4]} 12... e6 {[%clk 0:02:46.4]} 13.
f3 {[%clk 0:02:39.5]} 13... Nxd2 {[%clk 0:02:44.3]} 14. Bxd2 {[%clk 0:02:39.3]}
14... g5 {[%clk 0:02:44.5]} 15. Be1 {[%clk 0:02:36.4]} 15... Qf6 {[%clk
0:02:43.8]} 16. Qc2 {[%clk 0:02:31.5]} 16... Kh8 {[%clk 0:02:43.6]} 17. b4
{[%clk 0:02:28.8]} 17... e5 {[%clk 0:02:41.9]} 18. Rab1 {[%clk 0:02:26.6]} 18...
f4 {[%clk 0:02:40.7]} 19. Bf2 {[%clk 0:02:16.4]} 19... Re8 {[%clk 0:02:18.3]}
20. e4 {[%clk 0:02:13.2]} 20... exd4 {[%clk 0:02:12]} 21. Bxd4 {[%clk
0:02:12.7]} 21... Ne5 {[%clk 0:02:12.3]} 22. exd5 {[%clk 0:02:11.3]} 22... Bf5
{[%clk 0:02:12.3]} 23. Qb2 {[%clk 0:02:07.1]} 23... Bxb1 {[%clk 0:02:09.9]} 24.
Qxb1 {[%clk 0:02:07.5]} 24... cxd5 {[%clk 0:01:52.1]} 25. Nxd5 {[%clk 0:02:05]}
25... Qf7 {[%clk 0:01:52.3]} 26. Bf2 {[%clk 0:01:49.9]} 26... Rad8 {[%clk
0:01:50.6]} 27. Nb6 {[%clk 0:01:33.8]} 27... Nc6 {[%clk 0:01:44.2]} 28. Bc4
{[%clk 0:01:31.1]} 28... Qf5 {[%clk 0:01:21.5]} 29. Qxf5 {[%clk 0:01:27.6]}
29... Rxd1+ {[%clk 0:01:20.1]} 30. Bf1 {[%clk 0:01:27.5]} 30... Nd4 {[%clk
0:01:19.8]} 31. g4 {[%clk 0:00:39.9]} 31... Nxf5 {[%clk 0:01:18.7]} 32. gxf5
{[%clk 0:00:40.1]} 32... Bd4 {[%clk 0:01:02.4]} 33. f6 {[%clk 0:00:36.3]} 33...
Bxf6 {[%clk 0:00:59]} 34. Nc4 {[%clk 0:00:32.1]} 34... Bd4 {[%clk 0:00:57.9]}
35. Bxd4+ {[%clk 0:00:25.4]} 35... Rxd4 {[%clk 0:00:57.3]} 36. Nd6 {[%clk
0:00:25.8]} 36... Rxd6 {[%clk 0:00:56.1]} 37. cxd6 {[%clk 0:00:25.2]} 37... Rd8
{[%clk 0:00:56.3]} 0-1

[Event "*** SCC Grand Prix: Titled Tuesday Blitz"]
[Site "Chess.com"]
[Date "2020.08.11"]
[Round "7"]
[White "gusmaster2262"]
[Black "Danfii"]
[Result "0-1"]
[WhiteElo "2214"]
[BlackElo "2356"]
[TimeControl "180+1"]
[EndTime "11:16:47 PDT"]
[Termination "Danfii won on time"]

1. c4 {[%clk 0:03:00.9]} 1... e5 {[%clk 0:02:59.7]} 2. Nc3 {[%clk 0:03:01]} 2...
Nf6 {[%clk 0:02:59.9]} 3. g3 {[%clk 0:03:00.8]} 3... d5 {[%clk 0:02:59.8]} 4.
cxd5 {[%clk 0:02:59.1]} 4... Nxd5 {[%clk 0:03:00.7]} 5. Bg2 {[%clk 0:02:58.4]}
5... Nb6 {[%clk 0:03:00.9]} 6. Nf3 {[%clk 0:02:58.2]} 6... Nc6 {[%clk 0:03:01]}
7. O-O {[%clk 0:02:58.7]} 7... Be7 {[%clk 0:03:01.5]} 8. d3 {[%clk 0:02:56.6]}
8... O-O {[%clk 0:03:01.3]} 9. a3 {[%clk 0:02:56.5]} 9... Re8 {[%clk 0:03:01.2]}
10. b4 {[%clk 0:02:55.6]} 10... Bf8 {[%clk 0:03:01.4]} 11. Bb2 {[%clk 0:02:54]}
11... a5 {[%clk 0:03:01.3]} 12. b5 {[%clk 0:02:52.9]} 12... Nd4 {[%clk
0:03:01.7]} 13. Nd2 {[%clk 0:02:41.8]} 13... a4 {[%clk 0:03:01.2]} 14. e3 {[%clk
0:02:27.1]} 14... Ne6 {[%clk 0:03:01.1]} 15. Qe2 {[%clk 0:02:18]} 15... Nc5
{[%clk 0:02:58]} 16. Nde4 {[%clk 0:02:11]} 16... Qxd3 {[%clk 0:02:48.6]} 17.
Nxc5 {[%clk 0:02:05.3]} 17... Qxe2 {[%clk 0:02:48.4]} 18. Nxe2 {[%clk
0:02:04.6]} 18... Bxc5 {[%clk 0:02:49]} 19. Rac1 {[%clk 0:02:04.4]} 19... Bd6
{[%clk 0:02:48.4]} 20. Rfd1 {[%clk 0:01:56.6]} 20... Ra5 {[%clk 0:02:44.6]} 21.
Nc3 {[%clk 0:01:15.9]} 21... Nc4 {[%clk 0:02:35.4]} 22. Rc2 {[%clk 0:01:15.5]}
22... Nxb2 {[%clk 0:02:28]} 23. Rxb2 {[%clk 0:01:14.7]} 23... Bxa3 {[%clk
0:02:27]} 24. Ra2 {[%clk 0:01:14.2]} 24... Bb4 {[%clk 0:02:24.4]} 25. Nxa4
{[%clk 0:01:09.8]} 25... Be6 {[%clk 0:02:22]} 26. Raa1 {[%clk 0:00:46.3]} 26...
Rxb5 {[%clk 0:02:08.2]} 27. Rab1 {[%clk 0:00:40.8]} 27... c6 {[%clk 0:01:59.4]}
28. f4 {[%clk 0:00:28.6]} 28... exf4 {[%clk 0:01:58.1]} 29. gxf4 {[%clk
0:00:27.7]} 29... Ra8 {[%clk 0:01:35.8]} 30. Nb2 {[%clk 0:00:14.6]} 30... Bc5
{[%clk 0:01:30.6]} 31. Kf2 {[%clk 0:00:08.3]} 31... Ba2 {[%clk 0:01:28.3]} 32.
Bf1 {[%clk 0:00:01.2]} 32... Rb4 {[%clk 0:01:04.3]} 0-1

[Event "*** SCC Grand Prix: Titled Tuesday Blitz"]
[Site "Chess.com"]
[Date "2020.08.11"]
[Round "7"]
[White "Gvetadze"]
[Black "Andrakhanova"]
[Result "1-0"]
[WhiteElo "2419"]
[BlackElo "1702"]
[TimeControl "180+1"]
[EndTime "11:16:47 PDT"]
[Termination "Gvetadze won by resignation"]

1. Nf3 {[%clk 0:03:00.9]} 1... d5 {[%clk 0:02:58.8]} 2. g3 {[%clk 0:03:01.8]}
2... c6 {[%clk 0:02:58.9]} 3. Bg2 {[%clk 0:03:02.1]} 3... Nf6 {[%clk 0:02:58.8]}
4. O-O {[%clk 0:03:02.5]} 4... e6 {[%clk 0:02:59.1]} 5. d3 {[%clk 0:03:03.4]}
5... Nbd7 {[%clk 0:02:58.7]} 6. Nbd2 {[%clk 0:03:04.3]} 6... g6 {[%clk 0:02:59]}
7. e4 {[%clk 0:03:05.2]} 7... dxe4 {[%clk 0:02:56.3]} 8. dxe4 {[%clk 0:03:05.2]}
8... Bg7 {[%clk 0:02:56.6]} 9. Qe2 {[%clk 0:03:04.5]} 9... O-O {[%clk
0:02:56.5]} 10. e5 {[%clk 0:03:04.7]} 10... Nd5 {[%clk 0:02:52.7]} 11. c4 {[%clk
0:03:03.9]} 11... Ne7 {[%clk 0:02:50.2]} 12. Rd1 {[%clk 0:02:51.4]} 12... Qc7
{[%clk 0:02:50.1]} 13. Re1 {[%clk 0:02:51.2]} 13... c5 {[%clk 0:02:48.5]} 14.
Nf1 {[%clk 0:02:45.4]} 14... Rb8 {[%clk 0:02:47.7]} 15. h4 {[%clk 0:02:44]}
15... h5 {[%clk 0:02:45.5]} 16. N1h2 {[%clk 0:02:39.2]} 16... Nf5 {[%clk
0:02:39.2]} 17. Bf4 {[%clk 0:02:38.9]} 17... b6 {[%clk 0:02:31.4]} 18. Rad1
{[%clk 0:02:38.8]} 18... Bb7 {[%clk 0:02:30.9]} 19. Ng5 {[%clk 0:02:34.8]} 19...
Bxg2 {[%clk 0:02:25]} 20. Kxg2 {[%clk 0:02:35.7]} 20... Rbd8 {[%clk 0:02:24.9]}
21. Qe4 {[%clk 0:02:34.5]} 21... Nd4 {[%clk 0:02:17.6]} 22. Nhf3 {[%clk
0:02:33.3]} 22... Nf5 {[%clk 0:02:12.1]} 23. Rd2 {[%clk 0:02:26.6]} 23... Nb8
{[%clk 0:02:10.1]} 24. Red1 {[%clk 0:02:24.8]} 24... Rxd2 {[%clk 0:02:09.8]} 25.
Rxd2 {[%clk 0:02:24.5]} 25... Nc6 {[%clk 0:02:05.7]} 26. Kh2 {[%clk 0:02:09.7]}
26... Ncd4 {[%clk 0:01:59.2]} 27. Nxd4 {[%clk 0:02:09.4]} 27... Nxd4 {[%clk
0:01:59.7]} 28. Qe3 {[%clk 0:02:09]} 28... Rd8 {[%clk 0:01:54.8]} 29. Ne4 {[%clk
0:02:05.6]} 29... Nf5 {[%clk 0:01:42.3]} 30. Qc3 {[%clk 0:01:53.4]} 30... Kf8
{[%clk 0:01:15.1]} 31. Nf6 {[%clk 0:01:48.5]} 31... Rxd2 {[%clk 0:01:12]} 32.
Qxd2 {[%clk 0:01:47.7]} 32... Nd4 {[%clk 0:01:11.4]} 33. Qe3 {[%clk 0:01:39.2]}
33... Qc6 {[%clk 0:01:07.8]} 34. Ne4 {[%clk 0:01:32.6]} 34... Nf5 {[%clk
0:01:00]} 35. Qe1 {[%clk 0:01:31.1]} 35... Nd4 {[%clk 0:00:59.5]} 36. Kg2 {[%clk
0:01:31]} 36... Ke7 {[%clk 0:00:55.8]} 37. f3 {[%clk 0:01:30.3]} 37... Kf8
{[%clk 0:00:54.5]} 38. Qd2 {[%clk 0:01:27.3]} 38... Qc7 {[%clk 0:00:52.5]} 39.
Nf6 {[%clk 0:01:26.5]} 39... Qd8 {[%clk 0:00:50.1]} 40. Bh6 {[%clk 0:01:24.7]}
40... Qc7 {[%clk 0:00:45]} 41. Bxg7+ {[%clk 0:01:19.3]} 41... Ke7 {[%clk
0:00:43.9]} 42. Ne4 {[%clk 0:01:14.6]} 42... Qc6 {[%clk 0:00:34.5]} 43. b3
{[%clk 0:01:13.5]} 43... a5 {[%clk 0:00:31]} 44. Bf6+ {[%clk 0:01:13.6]} 44...
Kd7 {[%clk 0:00:30.6]} 45. Qh6 {[%clk 0:01:13.4]} 45... a4 {[%clk 0:00:28.4]}
46. Qf8 {[%clk 0:01:13]} 1-0